Cogmind - Beta 14 @@@ ROGUE MODE // 2024.08.11 @ 04:55:12 Player: Darby Result: Destroyed by G-34 Mercenary with Small Laser Performance ------------- Evolutions (0) 0 Regions Visited (4) 800 Robots Destroyed (96) 480 Value Destroyed (1689) 1689 Prototype IDs (37) 740 Alien Tech Used (0) 0 Bonus (637) 637 TOTAL SCORE: 4346 Bonus ------- High Alert Combat Kills 337 Aligned with FarCom 300 Cogmind --------- Core Integrity 0/250 Matter 252/300 Energy 160/160 System Corruption 1% Temperature Warning (356) Movement Walking (190) Ox1 Location -9/Mines Parts ------- > --- POWER (1) -------- Light Nuclear Core > --- PROPULSION (2) --- Aluminum Leg Aluminum Leg > --- UTILITY (2) ------ Large Storage Unit Light Armor Plating > --- WEAPON (2) ------- Particle Gun Autogun > --- INVENTORY (15) --- Backup Propulsion I Flight Unit Flight Unit VTOL Module Small Storage Unit Structural Scanner Visual Processing Unit Sensor Array Signal Interpreter Seismic Detector 0b10 Alert Chip Light Armor Plating Datajack Mining Laser Plasma Cutter Peak State ------------ > --- POWER ------------ Ion Engine > --- PROPULSION ------- Aluminum Leg Aluminum Leg > --- UTILITY ---------- Large Storage Unit Light Armor Plating > --- WEAPON ----------- Latent Energy Streamer Datajack > --- INVENTORY -------- Ion Engine Aluminum Leg Backup Propulsion I Flight Unit Flight Unit Small Storage Unit Structural Scanner Visual Processing Unit Sensor Array Signal Interpreter Seismic Detector Light Armor Plating Small Laser Backup Laser I Mining Laser [Rating: 17] Favorites ----------- Power Ion Engine Engine Ion Engine Power Core Light Nuclear Core Propulsion Aluminum Leg Leg Aluminum Leg Wheel Wheel Utility Large Storage Unit Device Structural Scanner Storage Large Storage Unit Protection Light Armor Plating Weapon Medium Laser Energy Gun Medium Laser Energy Cannon Latent Energy Streamer Ballistic Gun Assault Rifle Ballistic Cannon Light Cannon Launcher Grenade Launcher Special Weapon Mining Laser Special Melee Weapon Datajack Build | -11 -10 -10 -10 -9 ------- Run | Yrd Mat Min Exi Min Slots Evolved . | . . . . . Power . | . . . . . Propulsion . | . . . . . Utility . | . . . . . Weapon . | . . . . . Parts Attached 97 | 9 65 . 5 18 Power 9 | 1 4 . 1 3 Engine 8 | 1 4 . 1 2 Core 1 | . . . . 1 Reactor . | . . . . . Propulsion 19 | 4 12 . . 3 Treads . | . . . . . Leg 15 | 2 10 . . 3 Wheel 4 | 2 2 . . . Hover . | . . . . . Flight . | . . . . . Utility 19 | 2 12 . 2 3 Device 6 | 2 3 . . 1 Storage 3 | . 1 . 1 1 Processor . | . . . . . Hackware . | . . . . . Protection 10 | . 8 . 1 1 Artifact . | . . . . . Weapon 50 | 2 37 . 2 9 Energy Gun 22 | 2 17 . . 3 Energy Cannon 1 | . . . 1 . Ballistic Gun 9 | . 3 . . 6 Ballistic Cannon 2 | . 2 . . . Launcher 4 | . 4 . . . Special Weapon 11 | . 11 . . . Impact Weapon . | . . . . . Slashing Weapon . | . . . . . Piercing Weapon . | . . . . . Special Melee Weapon 1 | . . . 1 . Unidentified Prototypes . | . . . . . Parts Lost 9 | . 9 . . . Power . | . . . . . Propulsion 3 | . 3 . . . Utility 2 | . 2 . . . Weapon 4 | . 4 . . . Highest Loss Streak 4 | . 4 . . . To Critical Strikes . | . . . . . Average Slot Usage (%) 97 | . 99 100 88 100 Engine 12 | . 14 14 14 4 Core 1 | . . . . 9 Leg 25 | . 24 28 28 28 Wheel 2 | . 3 . . . Device 2 | . 1 . . 7 Storage 13 | . 13 14 14 14 Protection 11 | . 11 14 14 6 Energy Gun 12 | . 16 28 . 10 Ballistic Gun 6 | . 5 . . 17 Ballistic Cannon 1 | . 2 . . . Special Weapon 2 | . 3 . . . Special Melee Weapon 2 | . . . 13 . Peak Build Rating 17 | 9 9 8 17 13 Average Rating 8 | 5 7 8 9 11 On Entrance 6 | . 9 8 8 8 Naked Turns . | . . . . . Heaviest Build 39 | 9 34 30 39 34 Greatest Support 20 | 20 20 20 20 20 Greatest Overweight (x) 3 | . 3 1 1 1 Average Overweight (x) 1 | . 1 1 1 1 Largest Inventory Capacity 15 | 5 15 15 15 15 Average Capacity 14 | 5 14 15 15 15 Most Carried 15 | 5 15 15 15 15 Average Carried 13 | 3 13 15 15 14 Final Capacity 15 | 5 15 15 15 15 Final Carried 15 | 5 15 15 15 15 Class Distribution -------------------- 57% | Mutant 42% | Scavenger-Mutant Dominant Class ---------------- Mutant | -10/Materials Scavenger-Mutant | -10/Mines Mutant | -10/Exiles Scavenger-Mutant | -9/Mines Resources | -11 -10 -10 -10 -9 ----------- Run | Yrd Mat Min Exi Min Matter Collected 1960 | 290 1423 . 50 197 Remotely . | . . . . . Salvage Created 2922 | 161 2428 52 . 281 Parts 225 | 21 180 5 . 19 Haulers Intercepted 2 | . 2 . . . Recyclers Shooed 6 | . 6 . . . Parts Field Recycled . | . . . . . Retrieved Matter . | . . . . . Parts Self-Destructed . | . . . . . Prevented . | . . . . . Kills | -11 -10 -10 -10 -9 ------- Run | Yrd Mat Min Exi Min Combat Hostiles Destroyed 42 | 1 33 . . 8 Guns 30 | 1 21 . . 8 Cannons 2 | . 2 . . . AOE 10 | . 10 . . . Classes Destroyed 10 | 3 6 . . 1 Worker 26 | 1 25 . . . Builder 14 | . 13 1 . . Tunneler 9 | 4 4 1 . . Hauler 2 | . 2 . . . Recycler 8 | . 8 . . . Operator 2 | . 2 . . . Watcher 3 | . 3 . . . Swarmer 9 | . 6 . . 3 Grunt 32 | 1 27 . . 4 Brawler 1 | . . . . 1 Best Kill Streak 8 | 5 8 2 . 3 Combat Bots Only 5 | 1 5 . . 3 Max Kills in Single Turn 2 | 2 2 1 . 2 Gunslinging . | . . . . . Exploded 2 | . 2 . . . Melee . | . . . . . Uniques/NPCs Destroyed . | . . . . . Combat | -11 -10 -10 -10 -9 -------- Run | Yrd Mat Min Exi Min Hostile Shots Fired 215 | 6 152 . . 57 Missed 50 | 1 37 . . 12 Damage Taken 1774 | 89 1261 . . 424 Core 256 | 22 92 . . 142 Absorbed by Shields . | . . . . . Regen/Repaired (Parts) 30 | . 30 . . . Core Remaining (%) 91 | 91 . . . . Volleys Fired 393 | 9 361 2 . 21 Largest 2 | 2 2 2 . 2 Hottest 140 | 80 140 70 . 88 Shots Fired 674 | 18 611 4 . 41 Gun 594 | 18 531 4 . 41 Cannon 26 | . 26 . . . Launcher 19 | . 19 . . . Special 35 | . 35 . . . Kinetic 209 | . 191 . . 18 Thermal 418 | . 391 4 . 23 Explosive 19 | . 19 . . . Electromagnetic 28 | 18 10 . . . Robot Hit Streak 16 | 6 16 3 . 8 Robot Miss Streak 5 | 2 5 . . 3 Penetration Max . | . . . . . Secondary Targets 5 | . 4 . . 1 Max Gunslinging Chain 1 | . 1 . . 1 Shots Hit Robots 309 | 11 253 2 14 29 Core Hits 147 | 6 127 2 . 12 Critical Kills 1 | . 1 . . . Critical Parts Destroyed . | . . . . . Critical Strikes 10 | . 10 . . . Burn 7 | . 7 . . . Destroy 1 | . 1 . . . Blast 1 | . 1 . . . Corrupt 1 | . 1 . . . Melee Attacks 14 | . . . 14 . Impact . | . . . . . Slashing . | . . . . . Piercing . | . . . . . Sneak Attacks 14 | . . . 14 . Combat Hostiles . | . . . . . Follow-up Attacks . | . . . . . Damage Inflicted 4754 | 199 4130 20 . 405 Guns 3291 | 152 2714 20 . 405 Cannons 243 | . 243 . . . Explosions 1196 | 47 1149 . . . Melee . | . . . . . Ramming . | . . . . . Kinetic 975 | . 771 . . 204 Thermal 2400 | 47 2132 20 . 201 Explosive 1149 | . 1149 . . . Electromagnetic 230 | 152 78 . . . Impact . | . . . . . Slashing . | . . . . . Piercing . | . . . . . Highest Corruption 1 | . 1 1 1 1 Average Corruption 1 | . 1 1 1 1 Corruption Purged . | . . . . . Corruption Blocked . | . . . . . Effects 36 | . 8 . 15 13 Message Errors 11 | . 2 . 5 4 Matter Fused 12 | . 3 . 7 2 Heat Flow Errors 4 | . 1 . . 3 Energy Discharges 1 | . . . . 1 Data Loss (minor) 5 | . 1 . 3 1 Data Loss (major) 2 | . . . . 2 Misfires 1 | . 1 . . . Overload Shots . | . . . . . Overflow Damage 44 | . 44 . . . Projectiles . | . . . . . Explosions 44 | . 44 . . . Melee . | . . . . . Knockbacks 2 | . 2 . . . Impact . | . . . . . Kinetic 2 | . 2 . . . Secondary . | . . . . . Self-Inflicted Damage 72 | 35 37 . . . Shots 2 | 1 1 . . . Rammed . | . . . . . Targets Rammed . | . . . . . Kicked . | . . . . . Crushed . | . . . . . Highest Temperature 350 | 120 324 18 . 350 Average Temperature 68 | 51 67 9 . 85 Received Heat Transfer 795 | 30 627 . . 138 Siege Activations . | . . . . . Robots Corrupted . | . . . . . Combat Hostiles . | . . . . . Parts Fried 3 | 1 2 . . . Impact Corruptions . | . . . . . Robots Melted . | . . . . . Combat Hostiles . | . . . . . Parts Melted 7 | . 7 . . . Heat Transferred 7325 | 50 6656 50 . 569 Parts Sabotaged . | . . . . . Parts Stolen . | . . . . . Parts Stripped . | . . . . . Power Chain Reactions 1 | 1 . . . . Alert | -11 -10 -10 -10 -9 ------- Run | Yrd Mat Min Exi Min Peak Influence 1243 | 45 1243 493 . 75 Initial 483 | . 29 483 . . Average 511 | 16 637 487 . 39 Maximum Alert Level 4 | . 4 2 . . Low Security (%) 36 | 100 21 . . 100 Level 1 11 | . 15 . . . Level 2 14 | . 16 100 . . Level 3 22 | . 28 . . . Level 4 14 | . 18 . . . Level 5 . | . . . . . High Security . | . . . . . Max Security . | . . . . . Squads Dispatched 13 | . 13 . . . Investigation 11 | . 11 . . . Extermination . | . . . . . Reinforcement 2 | . 2 . . . Assault . | . . . . . Garrison . | . . . . . Intercept . | . . . . . Searches Triggered . | . . . . . Construction Impeded . | . . . . . Haulers Reinforced . | . . . . . Active Scanning Responses . | . . . . . Cargo Convoy Interrupts . | . . . . . Stealth | -11 -10 -10 -10 -9 --------- Run | Yrd Mat Min Exi Min Distress Signals 2 | . 2 . . . Communications Jammed . | . . . . . Distress Signals . | . . . . . Times Spotted 52 | 1 41 . . 10 Peak Tracking Total 4 | 1 4 . . 4 Tactical Retreats 1 | . 1 . . . Traps | -11 -10 -10 -10 -9 ------- Run | Yrd Mat Min Exi Min Traps Triggered 4 | . 4 . . . Indirectly . | . . . . . Trap Hack Attempts . | . . . . . Triggered . | . . . . . Disarmed . | . . . . . Reprogrammed . | . . . . . Reused . | . . . . . Traps Extracted . | . . . . . Installed . | . . . . . Triggered . | . . . . . Machines | -11 -10 -10 -10 -9 ---------- Run | Yrd Mat Min Exi Min Machines Disabled 32 | . 32 . . . Max in Single Turn 3 | . 3 . . . Machines Repaired . | . . . . . Machines Dismantled . | . . . . . Machines Sabotaged . | . . . . . Overloaded Fab Kills . | . . . . . Hacking | -11 -10 -10 -10 -9 --------- Run | Yrd Mat Min Exi Min Machines Accessed 15 | . 10 . 5 . Terminals 7 | . 7 . . . Fabricators . | . . . . . Repair Stations 1 | . 1 . . . Recycling Units 2 | . 2 . . . Scanalyzers . | . . . . . Garrison Access . | . . . . . Total Hacks 82 | . 32 . 50 . Successful 68 | . 18 . 50 . Failed 14 | . 14 . . . Catastrophic 3 | . 3 . . . Database Lockouts . | . . . . . Manual 30 | . 28 . 2 . Terminals 26 | . 26 . . . Fabricators . | . . . . . Repair Stations 3 | . 3 . . . Recycling Units 3 | . 3 . . . Scanalyzers . | . . . . . Garrison Access . | . . . . . Terminal Hacks 53 | . 3 . 50 . Record 51 | . 2 . 49 . Robot Analysis 1 | . 1 . . . Derelict Proto ID Bank 1 | . . . 1 . Fabricator Hacks . | . . . . . Repair Station Hacks . | . . . . . Recycling Unit Hacks . | . . . . . Scanalyzer . | . . . . . Garrison Access Hacks . | . . . . . Unauthorized Hacks 15 | . 15 . . . Terminals 10 | . 10 . . . Track 4 | . 4 . . . Botnet 1 | . 1 . . . Skim 5 | . 5 . . . Fabricators . | . . . . . Repair Stations 2 | . 2 . . . Mechanics 1 | . 1 . . . Patch 1 | . 1 . . . Recycling Units 3 | . 3 . . . Recyclers 1 | . 1 . . . Tunnel 2 | . 2 . . . Scanalyzers . | . . . . . Garrison Access . | . . . . . Data Cores Recovered . | . . . . . Used . | . . . . . Hacking Detections 8 | . 8 . . . Full Trace Events 5 | . 5 . . . Feedback Events 1 | . 1 . . . Corruption 1 | . 1 . . . Feedback Blocked . | . . . . . Robot Schematics Acquired . | . . . . . Robots Built . | . . . . . Authchips . | . . . . . Time . | . . . . . Total Robot Build Rating . | . . . . . Part Schematics Acquired . | . . . . . Parts Built . | . . . . . Authchips . | . . . . . Time . | . . . . . Total Part Build Rating . | . . . . . Parts Repaired . | . . . . . Time . | . . . . . Parts Recycled . | . . . . . Recycled Matter . | . . . . . Retrieved Matter . | . . . . . Retrieved Components . | . . . . . Parts Scanalyzed . | . . . . . Part Schematics Acquired . | . . . . . Parts Damaged . | . . . . . Bothacking | -11 -10 -10 -10 -9 ------------ Run | Yrd Mat Min Exi Min Used RIF Installer . | . . . . . Robots Hacked 4 | . . . 4 . Non-combat 3 | . . . 3 . Combat 1 | . . . 1 . Robot Hacks Applied 14 | . . . 14 . parse_system 14 | . . . 14 . Relay Couplers Released . | . . . . . Fabnet Peak Effective % . | . . . . . Robots Rewired . | . . . . . Allies Hacked . | . . . . . Hacks Repelled . | . . . . . Allies | -11 -10 -10 -10 -9 -------- Run | Yrd Mat Min Exi Min Total Allies . | . . . . . Largest Group . | . . . . . Highest-Rated Group . | . . . . . Highest-Rated Ally . | . . . . . Total Orders . | . . . . . Ally Attacks . | . . . . . Total Damage . | . . . . . Kills . | . . . . . Allies Corrupted . | . . . . . Allies Melted . | . . . . . Intel | -11 -10 -10 -10 -9 ------- Run | Yrd Mat Min Exi Min Robot Analysis Total 1 | . 1 . . . Derelict Logs Recovered 1 | . . . . 1 Drone Launches . | . . . . . Drone Recoveries . | . . . . . Exploration | -11 -10 -10 -10 -9 ------------- Run | Yrd Mat Min Exi Min Turns Passed 8893 | 151 5659 141 1590 1352 Spaces Moved 3588 | 93 2223 69 821 382 Core 13 | 13 . . . . Treads . | . . . . . Legs 2913 | 72 1569 69 821 382 Wheels 662 | 8 654 . . . Hover . | . . . . . Flight . | . . . . . Fastest Speed 50 | 50 80 190 190 190 Average Speed 174 | 106 168 190 190 190 Slowest Speed 190 | 120 190 190 190 190 Overloaded Moves . | . . . . . Propulsion Burnouts . | . . . . . Robots Hopped . | . . . . . Cave-ins Triggered . | . . . . . Exploration Rate (%) 53 | 10 100 16 92 49 Regions Visited 4 Branch Regions 3 Pre-discovered Areas 4 | . 2 . 1 1 Known Exits Taken . | . . . . . Unknown Exits Taken 4 | 1 1 1 1 . Scrap Searched 2 | . . . . 2 Spaces Dug 11 | . 11 . . . Terrain Destroyed 274 | 2 272 . . . Melee . | . . . . . Projectile 11 | . 11 . . . AOE 263 | 2 261 . . . Terrain Rammed . | . . . . . Walls Destroyed . | . . . . . Machines Disabled . | . . . . . Actions | -11 -10 -10 -10 -9 --------- Run | Yrd Mat Min Exi Min Total 5450 | 122 3434 75 844 975 Wait 1298 | 6 750 5 . 537 Move 3584 | 92 2222 68 820 382 Hop . | . . . . . Pick Up 31 | 6 19 . 1 5 Fast Attach 13 | 6 6 . 1 . Attach 8 | 1 6 . . 1 Detach 1 | . . . 1 . Swap 76 | 2 53 . 4 17 Drop 32 | . 17 . 3 12 Fire 393 | 9 361 2 . 21 Melee 14 | . . . 14 . Ram . | . . . . . Kick . | . . . . . Crush . | . . . . . Escape Stasis . | . . . . . Rewire . | . . . . . Trap . | . . . . . Miscellaneous . | . . . . . Route ------- -11/Scrapyard -10/Materials (discovered 5 exits: [*Mat x3] / [*Min] / [*Sub]) -10/Mines -10/Exiles (discovered 2 exits: [*Min x2]) -9/Mines History --------- Turn | Location | Event 2 | -11/Scrapyard | Met Revision 17 71 | -11/Scrapyard | Discovered new exit (range 8) 152 | -11/Scrapyard | Entered Materials 318 | -10/Materials | Build established: Mutant 460 | -10/Materials | Discovered new exit (range 16) 678 | -10/Materials | Discovered new exit (range 5) 939 | -10/Materials | Discovered new exit (range 11) 1455 | -10/Materials | Discovered new exit (range 4) 2107 | -10/Materials | Discovered new exit (range 11) 2185 | -10/Materials | Lost 3 parts (1n2w) 3659 | -10/Materials | Lost 4 parts (2n1u1w) 3918 | -10/Materials | Build established: Scavenger-Mutant 5811 | -10/Materials | Entered Mines 5944 | -10/Mines | Deemed a non-threat by the Exiles lab entrance 5944 | -10/Mines | Discovered new exit (range 5) 5952 | -10/Mines | Entered Exiles 5977 | -10/Exiles | Discovered new exit (range 15) 6002 | -10/Exiles | Met 8R-AWN 6031 | -10/Exiles | Met EX-HEX 6131 | -10/Exiles | Met EX-DEC 6198 | -10/Exiles | Visited The Gauntlet 6268 | -10/Exiles | Build established: Mutant 6436 | -10/Exiles | Learned location of Zion (-6) 6471 | -10/Exiles | Met EX-BIN 6745 | -10/Exiles | Discovered new exit (range 10) 6921 | -10/Exiles | Aligned with FarCom system 6923 | -10/Exiles | Given EX-Vault access code 6967 | -10/Exiles | Opened EX-Vault 6980 | -10/Exiles | Found Latent Energy Streamer 7024 | -10/Exiles | Warned to stay clear of 0b10 Research branches 7345 | -10/Exiles | Found 0b10 Alert Chip 7542 | -10/Exiles | Left Exiles lab with 0b10 Alert Chip 7542 | -10/Exiles | Entered Mines 7550 | -9/Mines | Core integrity fell below 50% 7847 | -9/Mines | Build established: Scavenger-Mutant 8885 | -9/Mines | Core integrity fell below 20% 8894 | -9/Mines | Destroyed by G-34 Mercenary with Small Laser Last Messages --------------- 08013_ Acquired 20 matter. 08017_ Dropped Aluminum Leg. 08024_ K-01 Serf collects debris. 08053_ Acquired derelict log, extracted data. World map updated: -8/Materials. 08057_ GTXXFRLY,C1J LC